fUSD/lending_fUSD_20240122
["ID","MTS","AMOUNT","RATE_DAILY","PERIOD"]
[312483566,1705918458118,-500.0,0.00055616,120]
[312483567,1705918458143,-500.0,0.00055616,120]
[312483568,1705918458168,-745.92,0.00055616,120]
[312483569,1705918458192,-500.0,0.00055616,120]
[312483570,1705918458220,-736.11,0.00055616,120]
[312483571,1705918458248,-1188.48,0.00055616,120]
[312483572,1705918458275,-2308.27,0.00055616,120]
[312483573,1705918458302,-500.0,0.00055616,120]
[312483574,1705918458329,-1372.18,0.00055616,120]
[312483575,1705918458354,-1101.89,0.00055616,120]
[312483576,1705918458378,-1972.56,0.00055616,120]
[312483577,1705918458406,-500.0,0.00055616,120]
[312483578,1705918458435,-552.39,0.00055616,120]
[312483579,1705918458460,-2142.95,0.00055616,120]
[312483580,1705918458488,-541.92,0.00055616,120]
[312483581,1705918458514,-2444.17,0.00055616,120]
[312483582,1705918458539,-961.77,0.00055616,120]
[312483583,1705918458563,-500.0,0.00055616,120]
[312483584,1705918458588,-2463.13,0.00055616,120]
[312483585,1705918458613,-500.0,0.00055616,120]
[312483586,1705918458638,-600.69060351,0.00055616,120]
[312483587,1705918458663,-747.18,0.00055616,120]
[312483588,1705918458688,-1281.33,0.00055616,120]
[312483589,1705918458713,-1524.9,0.00055616,120]
[312483590,1705918458741,-500.0,0.00055616,120]
[312483591,1705918458767,-924.15,0.00055616,120]
[312483592,1705918458792,-500.0,0.00055616,120]
[312483593,1705918458818,-14502.99,0.00055616,120]
[312483594,1705918458843,-2585.05,0.00055616,120]
[312483595,1705918458882,-500.0,0.00055616,120]
[312483596,1705918458921,-2250.02,0.00055616,120]
[312483597,1705918458946,-684.76,0.00055616,120]
[312483598,1705918458973,-1085.35,0.00055616,120]
[312483599,1705918459003,-2371.14,0.00055616,120]
[312483600,1705918459029,-1090.09,0.00055616,120]
[312483601,1705918459054,-1293.87,0.00055616,120]
[312483602,1705918459080,-1182.55,0.00055616,120]
[312483603,1705918459107,-500.0,0.00055616,120]
[312483604,1705918459133,-603.32905062,0.00055616,120]
[312483605,1705918459158,-3817.42,0.00055616,120]
[312483606,1705918459186,-784.09,0.00055616,120]
[312483607,1705918459210,-4226.7,0.00055616,120]
[312483608,1705918459241,-3693.98,0.00055616,120]
[312483609,1705918459269,-500.0,0.00055616,120]
[312483610,1705918459294,-892.42,0.00055616,120]
[312483611,1705918459320,-2184.8,0.00055616,120]
[312483612,1705918459346,-1360.81,0.00055616,120]
[312483613,1705918459373,-1092.84,0.00055616,120]
[312483614,1705918459398,-3654.95,0.00055616,120]
[312483615,1705918459424,-817.95,0.00055616,120]
[312483616,1705918459449,-16683.3,0.00055616,120]
[312483617,1705918459472,-555.46875136,0.00055616,120]
[312483618,1705918459500,-1780.31,0.00055616,120]
[312483619,1705918459525,-705.95,0.00055616,120]
[312483620,1705918459548,-500.0,0.00055616,120]
[312483621,1705918459573,-2271.35,0.00055616,120]
[312483622,1705918459597,-500.0,0.00055616,120]
[312483623,1705918459623,-2209.82,0.00055616,120]
[312483624,1705918459648,-1049.17,0.00055616,120]
[312483625,1705918459671,-185.18766113,0.00055616,120]
[312483626,1705918459694,-1714.36,0.00055616,120]
[312483627,1705918459718,-512.0121676,0.00055616,120]
[312483628,1705918459745,-500.0,0.00055616,120]
[312483629,1705918459770,-972.55,0.00055616,120]
[312483630,1705918459794,-500.0,0.00055616,120]
[312483631,1705918459819,-739.42,0.00055616,120]
[312483632,1705918459844,-960.95,0.00055616,120]
[312483633,1705918460052,-602.34,0.00055616,120]
[312483634,1705918460077,-738.1,0.00055616,120]
[312483635,1705918460102,-500.0,0.00055616,120]
[312483636,1705918460128,-788.32,0.00055616,120]
[312483637,1705918460152,-500.0,0.00055616,120]
[312483638,1705918460177,-1467.59,0.00055616,120]
[312483639,1705918460201,-514.37,0.00055616,120]
[312483640,1705918460226,-390.20498394,0.00055616,120]
[312483641,1705918460254,-5756.1,0.00055616,120]
[312483642,1705918460280,-3899.08,0.00055616,120]
[312483643,1705918460304,-500.0,0.00055616,120]
[312483644,1705918460330,-500.0,0.00055616,120]
[312483645,1705918460357,-500.0,0.00055616,120]
[312483646,1705918460382,-1819.22,0.00055616,120]
[312483647,1705918460408,-1216.84,0.00055616,120]
[312483648,1705918460434,-1489.53,0.00055616,120]
[312483649,1705918460458,-500.0,0.00055616,120]
[312483650,1705918460483,-1836.66,0.00055616,120]
[312483651,1705918460509,-759.64,0.00055616,120]
[312483652,1705918460533,-1192.99,0.00055616,120]
[312483653,1705918460558,-500.0,0.00055616,120]
[312483654,1705918460582,-227.93751825,0.00055616,120]
[312483655,1705918460607,-2474.77,0.00055616,120]
[312483656,1705918460632,-1925.28,0.00055616,120]
[312483657,1705918460657,-1261.67,0.00055616,120]
[312483658,1705918460682,-500.0,0.00055616,120]
[312483659,1705918460709,-1350.97,0.00055616,120]
[312483660,1705918460738,-1241.68,0.00055616,120]
[312483661,1705918460763,-500.0,0.00055616,120]
[312483662,1705918460791,-500.0,0.00055616,120]
[312483663,1705918460818,-977.26,0.00055616,120]
[312483664,1705918460848,-500.0,0.00055616,120]
[312483665,1705918460880,-2355.07,0.00055616,120]
[312483666,1705918460905,-500.0,0.00055616,120]
[312483667,1705918460931,-500.0,0.00055616,120]
[312483668,1705918460956,-1804.9,0.00055616,120]
[312483669,1705918460982,-6561.13,0.00055616,120]
[312483670,1705918461008,-521.53704744,0.00055616,120]
[312483671,1705918461033,-500.0,0.00055616,120]
[312483672,1705918461058,-1465.34,0.00055616,120]
[312483673,1705918461083,-4040.49,0.00055616,120]
[312483674,1705918461109,-7493.82,0.00055616,120]
[312483675,1705918461134,-1387.74,0.00055616,120]
[312483676,1705918461160,-2456.24,0.00055616,120]
[312483677,1705918461185,-1103.2,0.00055616,120]
[312483678,1705918461211,-2622.32,0.00055616,120]
[312483679,1705918461238,-537.45,0.00055616,120]
[312483680,1705918461265,-1636.7,0.00055616,120]
[312483681,1705918461290,-500.0,0.00055616,120]
[312483682,1705918461314,-814.98,0.00055616,120]
[312483683,1705918461342,-500.0,0.00055616,120]
[312483684,1705918461368,-2173.4,0.00055616,120]
[312483685,1705918461393,-400.0,0.00055726,120]
[312483686,1705918461419,-500.0,0.0005589,120]
[312483687,1705918461443,-713.28,0.0005589,120]
[312483688,1705918461470,-500.0,0.0005589,120]
[312483689,1705918461495,-602.84,0.0005589,120]
[312483690,1705918461521,-645.74,0.0005589,120]
[312483691,1705918461546,-500.0,0.0005589,120]
[312483692,1705918461577,-636.13,0.0005589,120]
[312483693,1705918461602,-500.0,0.0005589,120]
[312483694,1705918461626,-500.0,0.0005589,120]
[312483695,1705918461650,-500.0,0.0005589,120]
[312483696,1705918461674,-500.0,0.0005589,120]
[312483697,1705918461697,-1398.85,0.0005589,120]
[312483698,1705918461722,-500.0,0.0005589,120]
[312483699,1705918461747,-745.51,0.0005589,120]
[312483700,1705918461772,-997.7,0.0005589,120]
[312483701,1705918461797,-500.0,0.0005589,120]
[312483702,1705918461821,-500.0,0.0005589,120]
[312483703,1705918461845,-500.0,0.0005589,120]
[312483704,1705918461871,-707.21,0.0005589,120]
[312483705,1705918461896,-500.0,0.0005589,120]
[312483706,1705918461920,-500.0,0.0005589,120]
[312483707,1705918461944,-500.0,0.0005589,120]
[312483708,1705918461968,-500.0,0.0005589,120]
[312483709,1705918461994,-1187.06,0.0005589,120]
[312483710,1705918462018,-223.64566138,0.0005589,120]
[312483711,1705918462042,-470.86808697,0.0005589,120]
[312483712,1705918462067,-500.0,0.0005589,120]
[312483713,1705918462092,-742.13,0.0005589,120]
[312483714,1705918462115,-182.48527671,0.0005589,120]
[312483715,1705918462138,-500.0,0.0005589,120]
[312483716,1705918462163,-500.0,0.0005589,120]
[312483717,1705918462185,-500.0,0.0005589,120]
[312483718,1705918462208,-500.0,0.0005589,120]
[312483719,1705918462234,-1278.95,0.0005589,120]
[312483720,1705918462262,-802.05,0.0005589,120]
[312483721,1705918462288,-373.10736407,0.0005589,120]
[312483722,1705918462311,-500.0,0.0005589,120]
[312483723,1705918462335,-500.0,0.0005589,120]
[312483724,1705918462359,-500.0,0.0005589,120]
[312483725,1705918462382,-602.12,0.0005589,120]
[312483726,1705918462405,-326.42611031,0.0005589,120]
[312483727,1705918462429,-1371.19,0.0005589,120]
[312483728,1705918462452,-792.25,0.0005589,120]
[312483729,1705918462476,-912.7,0.0005589,120]
[312483730,1705918462504,-973.37,0.0005589,120]
[312483731,1705918462527,-500.0,0.0005589,120]
[312483732,1705918462550,-982.47,0.0005589,120]
[312483733,1705918462572,-500.0,0.0005589,120]
[312483734,1705918462595,-500.0,0.0005589,120]
[312483735,1705918462617,-500.0,0.0005589,120]
[312483736,1705918462853,-475.37630135,0.0005589,120]
[312483737,1705918462880,-1169.98,0.0005589,120]
[312483738,1705918462906,-500.0,0.0005589,120]
[312483739,1705918462932,-2674.45,0.0005589,120]
[312483740,1705918462958,-723.04,0.0005589,120]
[312483741,1705918462982,-563.17,0.0005589,120]
[312483742,1705918463011,-902.59,0.0005589,120]
[312483743,1705918463037,-500.0,0.0005589,120]
[312483744,1705918463063,-1240.23,0.0005589,120]
[312483745,1705918463087,-668.9,0.0005589,120]
[312483746,1705918463111,-500.0,0.0005589,120]
[312483747,1705918463137,-500.0,0.0005589,120]
[312483748,1705918463163,-1239.21,0.0005589,120]
[312483749,1705918463189,-500.0,0.0005589,120]
[312483750,1705918463216,-1038.92,0.0005589,120]
[312483751,1705918463246,-1181.06,0.0005589,120]
[312483752,1705918463272,-500.0,0.0005589,120]
[312483753,1705918463299,-1214.42,0.0005589,120]
[312483754,1705918463326,-1064.35,0.0005589,120]
[312483755,1705918463352,-500.0,0.0005589,120]
[312483756,1705918463380,-500.0,0.0005589,120]
[312483757,1705918463410,-500.0,0.0005589,120]
[312483758,1705918463439,-873.61,0.0005589,120]
[312483759,1705918463469,-532.44,0.0005589,120]
[312483760,1705918463498,-1073.55,0.0005589,120]
[312483761,1705918463527,-9034.29,0.0005589,120]
[312483762,1705918463555,-918.93,0.0005589,120]
[312483763,1705918463584,-1999.18,0.0005589,120]
[312483764,1705918463614,-1061.34,0.0005589,120]
[312483765,1705918463641,-500.0,0.0005589,120]
[312483766,1705918463674,-922.93,0.0005589,120]
[312483767,1705918463702,-500.0,0.0005589,120]
[312483768,1705918463730,-500.0,0.0005589,120]
[312483769,1705918463760,-808.33,0.0005589,120]
[312483770,1705918463789,-2476.34,0.0005589,120]
[312483771,1705918463816,-656.23,0.0005589,120]
[312483772,1705918463843,-4107.9,0.0005589,120]
[312483773,1705918463870,-699.33,0.0005589,120]
[312483774,1705918463898,-724.39,0.0005589,120]
[312483775,1705918463926,-1665.07,0.0005589,120]
[312483776,1705918463954,-1116.22,0.0005589,120]
[312483777,1705918463981,-510.41274575,0.0005589,120]
[312483778,1705918464011,-500.0,0.0005589,120]
[312483779,1705918464040,-657.56,0.0005589,120]
[312483780,1705918464068,-2512.1,0.0005589,120]
[312483781,1705918464096,-500.0,0.0005589,120]
[312483782,1705918464126,-1194.47,0.0005589,120]
[312483783,1705918464154,-1720.31,0.0005589,120]
[312483784,1705918464186,-500.0,0.0005589,120]
[312483785,1705918464214,-2301.29,0.0005589,120]
[312483786,1705918464248,-500.0,0.0005589,120]
[312483787,1705918464277,-500.0,0.0005589,120]
[312483788,1705918464306,-706.13,0.0005589,120]
[312483789,1705918464335,-553.69,0.0005589,120]
[312483790,1705918464363,-500.0,0.0005589,120]
[312483791,1705918464391,-1669.08,0.0005589,120]
[312483792,1705918464420,-19362.15,0.0005589,120]
[312483793,1705918464448,-1087.67,0.0005589,120]
[312483794,1705918464476,-712.61,0.0005589,120]
[312483795,1705918464506,-500.0,0.0005589,120]
[312483796,1705918464536,-500.0,0.0005589,120]
[312483797,1705918464564,-500.0,0.0005589,120]
[312483798,1705918464593,-500.0,0.0005589,120]
[312483799,1705918464620,-599.68,0.0005589,120]
[312483800,1705918464649,-1199.72,0.0005589,120]
[312483801,1705918464677,-1532.53,0.0005589,120]
[312483802,1705918464706,-1694.05,0.0005589,120]
[312483803,1705918464734,-500.0,0.0005589,120]
[312483804,1705918464764,-500.0,0.0005589,120]
[312483805,1705918464793,-6686.82,0.0005589,120]
[312483806,1705918464819,-543.86813947,0.0005589,120]
[312483807,1705918464846,-1450.35,0.0005589,120]
[312483808,1705918464872,-1145.67,0.0005589,120]
[312483809,1705918464898,-532.98,0.0005589,120]
[312483810,1705918464926,-2499.42,0.0005589,120]
[312483811,1705918464953,-500.0,0.0005589,120]
[312483812,1705918464980,-500.0,0.0005589,120]
[312483813,1705918465009,-500.0,0.0005589,120]
[312483814,1705918465036,-6801.26,0.0005589,120]
[312483815,1705918465062,-500.0,0.0005589,120]
[312483816,1705918465089,-1113.77,0.0005589,120]
[312483817,1705918465118,-1565.19,0.0005589,120]
[312483818,1705918465145,-826.52,0.0005589,120]
[312483819,1705918465173,-949.09,0.0005589,120]
[312483820,1705918465201,-565.56,0.0005589,120]
[312483821,1705918465230,-500.0,0.0005589,120]
[312483822,1705918465258,-1338.84,0.0005589,120]
[312483823,1705918465288,-500.0,0.0005589,120]
[312483824,1705918465317,-554.17,0.0005589,120]
[312483825,1705918465346,-5157.15,0.0005589,120]
[312483826,1705918465374,-500.0,0.0005589,120]
[312483827,1705918465401,-500.0,0.0005589,120]
[312483828,1705918465430,-1051.0,0.0005589,120]
[312483829,1705918465457,-2238.16,0.0005589,120]
[312483830,1705918465484,-500.0,0.0005589,120]
[312483831,1705918465529,-1373.79,0.0005589,120]
[312483832,1705918465560,-1019.58,0.0005589,120]
[312483833,1705918465589,-967.68,0.0005589,120]
[312483834,1705918465618,-1695.45,0.0005589,120]
[312483835,1705918465649,-500.0,0.0005589,120]
[312483836,1705918465677,-529.58,0.0005589,120]
[312483837,1705918465704,-500.0,0.0005589,120]
[312483838,1705918465734,-741.59,0.0005589,120]
[312483839,1705918465763,-500.0,0.0005589,120]
[312483840,1705918466026,-1989.11,0.0005589,120]
[312483841,1705918466055,-819.31,0.0005589,120]
[312483842,1705918466082,-500.0,0.0005589,120]
[312483843,1705918466109,-1387.06,0.0005589,120]
[312483844,1705918466135,-781.78,0.0005589,120]
[312483845,1705918466165,-2030.19,0.0005589,120]
[312483846,1705918466195,-584.46,0.0005589,120]
[312483847,1705918466224,-1238.5,0.0005589,120]
[312483848,1705918466253,-1848.21,0.0005589,120]
[312483849,1705918466281,-500.0,0.0005589,120]
[312483850,1705918466309,-500.0,0.0005589,120]
[312483851,1705918466338,-500.0,0.0005589,120]
[312483852,1705918466365,-1704.55,0.0005589,120]
[312483853,1705918466393,-1593.25,0.0005589,120]
[312483854,1705918466421,-1786.07,0.0005589,120]
[312483855,1705918466448,-500.0,0.0005589,120]
[312483856,1705918466476,-500.0,0.0005589,120]
[312483857,1705918466507,-1836.11,0.0005589,120]
[312483858,1705918466537,-863.91,0.0005589,120]
[312483859,1705918466564,-500.0,0.0005589,120]
[312483860,1705918466593,-500.0,0.0005589,120]
[312483861,1705918466623,-500.0,0.0005589,120]
[312483862,1705918466652,-801.79,0.0005589,120]
[312483863,1705918466682,-500.0,0.0005589,120]
[312483864,1705918466709,-2640.84,0.0005589,120]
[312483865,1705918466738,-500.0,0.0005589,120]
[312483866,1705918466767,-500.0,0.0005589,120]
[312483867,1705918466796,-448.46538296,0.0005589,120]
[312483868,1705918466825,-359.62,0.0005589,120]
[312483869,1705918466854,-2344.12,0.0005589,120]
[312483870,1705918466883,-865.46,0.0005589,120]
[312483871,1705918466910,-1496.93,0.0005589,120]
[312483872,1705918466938,-1578.24,0.0005589,120]
[312483873,1705918466968,-500.0,0.0005589,120]
[312483874,1705918466996,-2342.35,0.0005589,120]
[312483875,1705918467025,-1034.4,0.0005589,120]
[312483876,1705918467051,-1186.8,0.0005589,120]
[312483877,1705918467079,-2001.63,0.0005589,120]
[312483878,1705918467108,-1032.19,0.0005589,120]
[312483879,1705918467136,-3060.2,0.0005589,120]
[312483880,1705918467165,-761.23,0.0005589,120]
[312483881,1705918467192,-500.0,0.0005589,120]
[312483882,1705918467220,-500.0,0.0005589,120]
[312483883,1705918467251,-745.92,0.0005589,120]
[312483884,1705918467282,-500.0,0.0005589,120]
[312483885,1705918467309,-736.11,0.0005589,120]
[312483886,1705918467338,-1188.48,0.0005589,120]
[312483887,1705918467366,-500.0,0.0005589,120]
[312483888,1705918467394,-2308.27,0.0005589,120]
[312483889,1705918467424,-1372.18,0.0005589,120]
[312483890,1705918467451,-1101.89,0.0005589,120]
[312483891,1705918467480,-1972.56,0.0005589,120]
[312483892,1705918467507,-500.0,0.0005589,120]
[312483893,1705918467537,-552.39,0.0005589,120]
[312483894,1705918467564,-2142.95,0.0005589,120]
[312483895,1705918467594,-541.92,0.0005589,120]
[312483896,1705918467623,-2444.17,0.0005589,120]
[312483897,1705918467652,-961.77,0.0005589,120]
[312483898,1705918467680,-606.33844901,0.0005589,120]
[312483899,1705918467707,-2463.13,0.0005589,120]
[312483900,1705918467735,-500.0,0.0005589,120]
[312483901,1705918467767,-747.18,0.0005589,120]
[312483902,1705918467796,-1281.33,0.0005589,120]
[312483903,1705918467824,-1524.9,0.0005589,120]
[312483904,1705918467851,-500.0,0.0005589,120]
[312483905,1705918467878,-924.15,0.0005589,120]
[312483906,1705918467904,-500.0,0.0005589,120]
[312483907,1705918467931,-14502.99,0.0005589,120]
[312483908,1705918467959,-2585.05,0.0005589,120]
[312483909,1705918467987,-500.0,0.0005589,120]
[312483910,1705918468018,-2250.02,0.0005589,120]
[312483911,1705918468046,-684.76,0.0005589,120]
[312483912,1705918468073,-1085.35,0.0005589,120]
[312483913,1705918468100,-2371.14,0.0005589,120]
[312483914,1705918468130,-1090.09,0.0005589,120]
[312483915,1705918468158,-1293.87,0.0005589,120]
[312483916,1705918468186,-1182.55,0.0005589,120]
[312483917,1705918468214,-500.0,0.0005589,120]
[312483918,1705918468251,-3817.42,0.0005589,120]
[312483919,1705918468283,-784.09,0.0005589,120]
[312483920,1705918468317,-4226.7,0.0005589,120]
[312483921,1705918468347,-3693.98,0.0005589,120]
[312483922,1705918468375,-500.0,0.0005589,120]
[312483923,1705918468404,-892.42,0.0005589,120]
[312483924,1705918468431,-2184.8,0.0005589,120]
[312483925,1705918468459,-1360.81,0.0005589,120]
[312483926,1705918468486,-1092.84,0.0005589,120]
[312483927,1705918468518,-3654.95,0.0005589,120]
[312483928,1705918468549,-16683.3,0.0005589,120]
[312483929,1705918468577,-817.95,0.0005589,120]
[312483930,1705918468605,-705.95,0.0005589,120]
[312483931,1705918468635,-1780.31,0.0005589,120]
[312483932,1705918468662,-500.0,0.0005589,120]
[312483933,1705918468689,-2271.35,0.0005589,120]
[312483934,1705918468720,-500.0,0.0005589,120]
[312483935,1705918468748,-2209.82,0.0005589,120]
[312483936,1705918468779,-1049.17,0.0005589,120]
[312483937,1705918468807,-1714.36,0.0005589,120]
[312483938,1705918468835,-500.0,0.0005589,120]
[312483939,1705918468864,-972.55,0.0005589,120]
[312483940,1705918468891,-500.0,0.0005589,120]
[312483941,1705918468924,-739.42,0.0005589,120]
[312483942,1705918468953,-960.95,0.0005589,120]
[312483943,1705918469160,-602.34,0.0005589,120]
[312483944,1705918469191,-738.1,0.0005589,120]
[312483945,1705918469220,-500.0,0.0005589,120]
[312483946,1705918469251,-788.32,0.0005589,120]
[312483947,1705918469279,-500.0,0.0005589,120]
[312483948,1705918469311,-1467.59,0.0005589,120]
[312483949,1705918469340,-514.37,0.0005589,120]
[312483950,1705918469367,-5756.1,0.0005589,120]
[312483951,1705918469393,-3899.08,0.0005589,120]
[312483952,1705918469422,-500.0,0.0005589,120]
[312483953,1705918469451,-500.0,0.0005589,120]
[312483954,1705918469477,-500.0,0.0005589,120]
[312483955,1705918469508,-1819.22,0.0005589,120]
[312483956,1705918469535,-1216.84,0.0005589,120]
[312483957,1705918469563,-1489.53,0.0005589,120]
[312483958,1705918469588,-500.0,0.0005589,120]
[312483959,1705918469616,-1836.66,0.0005589,120]
[312483960,1705918469644,-759.64,0.0005589,120]
[312483961,1705918469671,-1192.99,0.0005589,120]
[312483962,1705918469699,-500.0,0.0005589,120]
[312483963,1705918469727,-2474.77,0.0005589,120]
[312483964,1705918469757,-1925.28,0.0005589,120]
[312483965,1705918469786,-1261.67,0.0005589,120]
[312483966,1705918469815,-500.0,0.0005589,120]
[312483967,1705918469843,-1350.97,0.0005589,120]
[312483968,1705918469871,-1241.68,0.0005589,120]
[312483969,1705918469899,-500.0,0.0005589,120]
[312483970,1705918469928,-500.0,0.0005589,120]
[312483971,1705918469957,-977.26,0.0005589,120]
[312483972,1705918469986,-500.0,0.0005589,120]
[312483973,1705918470018,-2355.07,0.0005589,120]
[312483974,1705918470048,-500.0,0.0005589,120]
[312483975,1705918470078,-500.0,0.0005589,120]
[312483976,1705918470107,-1804.9,0.0005589,120]
[312483977,1705918470136,-6561.13,0.0005589,120]
[312483978,1705918470165,-500.0,0.0005589,120]
[312483979,1705918470194,-1465.34,0.0005589,120]
[312483980,1705918470225,-4040.49,0.0005589,120]
[312483981,1705918470254,-7493.82,0.0005589,120]
[312483982,1705918470281,-1387.74,0.0005589,120]
[312483983,1705918470309,-2456.24,0.0005589,120]
[312483984,1705918470337,-1103.2,0.0005589,120]
[312483985,1705918470364,-2622.32,0.0005589,120]
[312483986,1705918470391,-537.45,0.0005589,120]
[312483987,1705918470418,-1636.7,0.0005589,120]
[312483988,1705918470445,-500.0,0.0005589,120]
[312483989,1705918470471,-814.98,0.0005589,120]
[312483990,1705918470498,-500.0,0.0005589,120]
[312483991,1705918470525,-350.0,0.0005611,120]
[312483992,1705918470551,-500.0,0.00056164,120]
[312483993,1705918470579,-713.28,0.00056164,120]
[312483994,1705918470606,-500.0,0.00056164,120]
[312483995,1705918470633,-602.84,0.00056164,120]
[312483996,1705918470660,-645.74,0.00056164,120]
[312483997,1705918470687,-500.0,0.00056164,120]
[312483998,1705918470713,-636.13,0.00056164,120]
[312483999,1705918470740,-500.0,0.00056164,120]
[312484000,1705918470768,-500.0,0.00056164,120]
[312484001,1705918470794,-500.0,0.00056164,120]
[312484002,1705918470821,-500.0,0.00056164,120]
[312484003,1705918470848,-1398.85,0.00056164,120]
[312484004,1705918470875,-500.0,0.00056164,120]
[312484005,1705918470907,-997.7,0.00056164,120]
[312484006,1705918470936,-745.51,0.00056164,120]
[312484007,1705918470963,-500.0,0.00056164,120]
[312484008,1705918470989,-500.0,0.00056164,120]
[312484009,1705918471019,-500.0,0.00056164,120]
[312484010,1705918471046,-707.21,0.00056164,120]
[312484011,1705918471073,-500.0,0.00056164,120]
[312484012,1705918471099,-500.0,0.00056164,120]
[312484013,1705918471127,-500.0,0.00056164,120]
[312484014,1705918471153,-500.0,0.00056164,120]
[312484015,1705918471181,-1187.06,0.00056164,120]
[312484016,1705918471209,-500.0,0.00056164,120]
[312484017,1705918471240,-742.13,0.00056164,120]
[312484018,1705918471269,-500.0,0.00056164,120]
[312484019,1705918471297,-500.0,0.00056164,120]
[312484020,1705918471325,-500.0,0.00056164,120]
[312484021,1705918471352,-500.0,0.00056164,120]
[312484022,1705918471379,-1278.95,0.00056164,120]
[312484023,1705918471405,-802.05,0.00056164,120]
[312484024,1705918471432,-491.0533262,0.00056164,120]
[312484025,1705918471458,-500.0,0.00056164,120]
[312484026,1705918471484,-500.0,0.00056164,120]
[312484027,1705918471511,-602.12,0.00056164,120]
[312484028,1705918471538,-1371.19,0.00056164,120]
[312484029,1705918471565,-792.25,0.00056164,120]
[312484030,1705918471591,-912.7,0.00056164,120]
[312484031,1705918471619,-973.37,0.00056164,120]
[312484032,1705918471644,-500.0,0.00056164,120]
[312484033,1705918471671,-982.47,0.00056164,120]
[312484034,1705918471698,-515.92210337,0.00056164,120]
[312484035,1705918471724,-500.0,0.00056164,120]
[312484036,1705918471751,-500.0,0.00056164,120]
[312484037,1705918471779,-1169.98,0.00056164,120]
[312484038,1705918471805,-500.0,0.00056164,120]
[312484039,1705918471832,-2674.45,0.00056164,120]
[312484040,1705918471858,-723.04,0.00056164,120]
[312484041,1705918471885,-563.17,0.00056164,120]
[312484042,1705918471912,-902.59,0.00056164,120]
[312484043,1705918471939,-500.0,0.00056164,120]
[312484044,1705918471966,-1240.23,0.00056164,120]
[312484045,1705918471993,-668.9,0.00056164,120]
[312484046,1705918472223,-500.0,0.00056164,120]
[312484047,1705918472257,-500.0,0.00056164,120]
[312484048,1705918472288,-1239.21,0.00056164,120]
[312484049,1705918472315,-500.0,0.00056164,120]
[312484050,1705918472343,-1038.92,0.00056164,120]
[312484051,1705918472369,-1181.06,0.00056164,120]
[312484052,1705918472397,-500.0,0.00056164,120]
[312484053,1705918472424,-1214.42,0.00056164,120]
[312484054,1705918472453,-1064.35,0.00056164,120]
[312484055,1705918472479,-500.0,0.00056164,120]
[312484056,1705918472505,-528.68929831,0.00056164,120]
[312484057,1705918472532,-500.0,0.00056164,120]
[312484058,1705918472558,-873.61,0.00056164,120]
[312484059,1705918472589,-532.44,0.00056164,120]
[312484060,1705918472616,-1073.55,0.00056164,120]
[312484061,1705918472643,-9034.29,0.00056164,120]
[312484062,1705918472670,-918.93,0.00056164,120]
[312484063,1705918472698,-1999.18,0.00056164,120]
[312484064,1705918472730,-1061.34,0.00056164,120]
[312484065,1705918472760,-413.79154113,0.00056164,120]